Cogmind - Beta 13 *** ADVENTURER MODE // 2024.04.10 @ 03:47:54 Player: brx Result: Destroyed by X-67 Chaingunner with Heavy Machine Gun Performance ------------- Evolutions (3) 1500 Regions Visited (4) 800 Robots Destroyed (85) 425 Value Destroyed (2878) 2878 Prototype IDs (2) 40 Alien Tech Used (0) 0 Bonus (4) 4 TOTAL SCORE: 5647 Bonus ------- High Alert Combat Kills 4 Cogmind --------- Core Integrity 0/700 Matter 300/300 Energy 100/100 System Corruption 2% Temperature Cool (0) Movement Core (200) Ox3 Location -7/Factory Parts ------- > --- POWER (2) -------- (None) > --- PROPULSION (3) --- (None) > --- UTILITY (6) ------ Coolant Injector Medium Storage Unit > --- WEAPON (2) ------- (None) > --- INVENTORY (10) --- Light Nuclear Core Shock Absorption System Gauss Rifle Flak Cannon Remote Datajack Peak State ------------ > --- POWER ------------ Light Ion Engine Micro Nuclear Core > --- PROPULSION ------- Improved Titanium Leg Improved Titanium Leg Improved Titanium Leg > --- UTILITY ---------- Improved Cooling System Medium Storage Unit Structural Scanner Hardened Medium Armor Plating Improved Light Armor Plating Improved Shield Generator > --- WEAPON ----------- Gatling Laser Advanced Assault Cannon > --- INVENTORY -------- Improved Heat Sink Coolant Injector Particle Charger Improved Shield Generator Lightning Gun High-powered Shotgun Flak Cannon Remote Datajack [Rating: 43] Favorites ----------- Power Light Nuclear Core Engine Ion Engine Power Core Light Nuclear Core Propulsion Aluminum Leg Treads Light Treads Leg Aluminum Leg Wheel Wheel Hover Unit Improved Hover Unit Flight Unit Flight Unit Utility Medium Storage Unit Device Structural Scanner Storage Medium Storage Unit Processor Visual Processing Unit Protection Core Shielding Weapon Improved Light Cannon Energy Gun Beam Rifle Energy Cannon EM Pulse Cannon Ballistic Gun High-powered Shotgun Ballistic Cannon Improved Light Cannon Build | -11 -10 -9 -8 -7 ------- Run | Yrd Mat Mat Mat Fac Slots Evolved 6 | . . 2 2 2 Power 1 | . . . 1 . Propulsion 1 | . . . 1 . Utility 4 | . . 2 . 2 Weapon . | . . . . . Parts Attached 89 | 6 3 12 32 36 Power 15 | 1 . 1 8 5 Engine 4 | 1 . . 1 2 Core 11 | . . 1 7 3 Reactor . | . . . . . Propulsion 28 | 2 . 4 13 9 Treads 6 | . . 2 1 3 Leg 11 | . . 2 5 4 Wheel 2 | 2 . . . . Hover 2 | . . . . 2 Flight 7 | . . . 7 . Utility 24 | 1 2 4 3 14 Device 16 | . 1 3 1 11 Storage 3 | 1 1 . . 1 Processor 1 | . . . 1 . Hackware . | . . . . . Protection 4 | . . 1 1 2 Artifact . | . . . . . Weapon 22 | 2 1 3 8 8 Energy Gun 10 | 1 . 2 1 6 Energy Cannon 2 | . . . 2 . Ballistic Gun 4 | 1 . . 2 1 Ballistic Cannon 6 | . 1 1 3 1 Launcher . | . . . . . Special Weapon . | . . . . . Impact Weapon . | . . . . . Slashing Weapon . | . . . . . Piercing Weapon . | . . . . . Special Melee Weapon . | . . . . . Unidentified Prototypes 2 | . . . 1 1 Parts Lost 39 | . . 3 11 25 Power 11 | . . 1 3 7 Propulsion 12 | . . 1 5 6 Utility 10 | . . . 2 8 Weapon 6 | . . 1 1 4 Highest Loss Streak 9 | . . 2 6 9 To Critical Strikes 2 | . . . 1 1 Average Slot Usage (%) 90 | . 99 99 91 80 Engine 4 | . 14 7 . 3 Core 7 | . . 3 14 4 Treads 5 | . . 5 8 4 Leg 11 | . . 12 11 15 Wheel 3 | . 28 4 . . Flight 1 | . . . 2 . Device 18 | . 13 21 16 21 Storage 9 | . 14 11 9 7 Protection 6 | . . 11 7 6 Energy Gun 6 | . 14 10 4 3 Ballistic Gun 2 | . 1 . 1 6 Ballistic Cannon 8 | . 12 11 10 3 Naked Turns . | . . . . . Heaviest Build 47 | 13 21 24 31 47 Greatest Support 84 | 20 26 49 69 84 Greatest Overweight (x) 10 | . 1 1 9 10 Average Overweight (x) . | . . . . . Largest Inventory Capacity 10 | 8 10 10 10 10 Average Capacity 9 | 6 9 10 10 10 Most Carried 10 | 1 10 10 10 10 Average Carried 8 | . 6 8 9 8 Final Capacity 10 | 8 10 10 10 10 Final Carried 10 | 1 10 9 8 5 Class Distribution -------------------- 73% | Mutant 26% | Scavenger-Mutant Dominant Class ---------------- Mutant | -10/Materials Mutant | -9/Materials Scavenger-Mutant | -8/Materials Mutant | -7/Factory Resources | -11 -10 -9 -8 -7 ----------- Run | Yrd Mat Mat Mat Fac Matter Collected 2202 | 211 170 242 751 828 Remotely . | . . . . . Salvage Created 2553 | . 285 392 964 912 Parts 148 | . 24 29 59 36 Haulers Intercepted . | . . . . . Recyclers Shooed 6 | . 1 . 1 4 Parts Field Recycled . | . . . . . Retrieved Matter . | . . . . . Parts Self-Destructed . | . . . . . Prevented . | . . . . . Kills | -11 -10 -9 -8 -7 ------- Run | Yrd Mat Mat Mat Fac Combat Hostiles Destroyed 73 | . 10 11 32 20 Guns 24 | . 4 1 7 12 Cannons 49 | . 6 10 25 8 Classes Destroyed 9 | . 4 1 2 2 Worker 2 | . . . 1 1 Recycler 3 | . 1 . 1 1 Watcher 7 | . 1 3 2 1 Swarmer 18 | . 6 2 10 . Grunt 34 | . 4 6 14 10 Brawler 1 | . . . . 1 Sentry 14 | . . 3 6 5 Hunter 3 | . . . 2 1 Programmer 2 | . . . . 2 Thug 1 | . . . . 1 Best Kill Streak 10 | . 4 4 10 4 Combat Bots Only 8 | . 4 3 8 2 Max Kills in Single Turn 2 | . 1 2 1 1 Gunslinging . | . . . . . Exploded . | . . . . . Melee . | . . . . . Uniques/NPCs Destroyed . | . . . . . Combat | -11 -10 -9 -8 -7 -------- Run | Yrd Mat Mat Mat Fac Hostile Shots Fired 898 | . 47 94 270 487 Missed 266 | . 14 23 67 162 Damage Taken 5930 | . 238 635 1999 3058 Core 1140 | . 62 79 296 703 Absorbed by Shields 37 | . . . . 37 Redirected to Shielding 51 | . . 14 37 . Ignored by Resistances 1806 | . 74 189 589 954 Regen/Repaired (Parts) 64 | . . 8 56 . Core Remaining (%) 75 | 100 75 80 46 . Volleys Fired 219 | . 24 34 82 79 Largest 2 | . 2 2 2 2 Hottest 135 | . 89 95 98 135 Shots Fired 410 | . 47 68 156 139 Gun 202 | . 24 34 45 99 Cannon 208 | . 23 34 111 40 Launcher . | . . . . . Special . | . . . . . Kinetic 277 | . 23 34 112 108 Thermal 110 | . 24 27 35 24 Explosive . | . . . . . Electromagnetic 23 | . . 7 9 7 Robot Hit Streak 35 | . 10 11 20 35 Robot Miss Streak 4 | . 3 2 4 2 Penetration Max . | . . . . . Secondary Targets . | . . . . . Shots Hit Robots 307 | . 28 41 119 119 Core Hits 187 | . 14 18 97 58 Critical Kills . | . . . . . Critical Parts Destroyed 2 | . . . 1 1 Critical Strikes 19 | . 2 2 8 7 Burn 6 | . 2 1 3 . Destroy 2 | . . . 1 1 Blast 11 | . . 1 4 6 Melee Attacks . | . . . . . Impact . | . . . . . Slashing . | . . . . . Piercing . | . . . . . Sneak Attacks . | . . . . . Combat Hostiles . | . . . . . Follow-up Attacks . | . . . . . Damage Inflicted 6442 | . 466 739 2426 2811 Guns 2699 | . 150 224 530 1795 Cannons 3743 | . 316 515 1896 1016 Explosions . | . . . . . Melee . | . . . . . Ramming . | . . . . . Kinetic 4850 | . 316 515 1839 2180 Thermal 1265 | . 150 170 399 546 Explosive . | . . . . . Electromagnetic 327 | . . 54 188 85 Impact . | . . . . . Slashing . | . . . . . Piercing . | . . . . . Highest Corruption 2 | . . . . 2 Average Corruption 2 | . . . . 2 Corruption Purged . | . . . . . Corruption Blocked . | . . . . . Effects 14 | . . . . 14 Message Errors 2 | . . . . 2 Matter Fused 4 | . . . . 4 Energy Discharges 3 | . . . . 3 Parts Fused 1 | . . . . 1 Data Loss (minor) 1 | . . . . 1 Alerts 1 | . . . . 1 Weapon Failures 2 | . . . . 2 Overload Shots . | . . . . . Overflow Damage 9 | . . 4 5 . Projectiles 9 | . . 4 5 . Explosions . | . . . . . Melee . | . . . . . Knockbacks 53 | . 5 2 36 10 Impact . | . . . . . Kinetic 48 | . 4 2 32 10 Secondary 5 | . 1 . 4 . Self-Inflicted Damage . | . . . . . Shots . | . . . . . Rammed . | . . . . . Targets Rammed . | . . . . . Kicked . | . . . . . Crushed . | . . . . . Highest Temperature 399 | . 226 138 382 399 Average Temperature 85 | . 69 39 93 109 Received Heat Transfer 2546 | . 63 243 963 1277 Effects 7 | . 2 . 1 4 Shutdowns 3 | . . . 1 2 Interference 2 | . 2 . . . Short Circuit 2 | . . . . 2 Siege Activations . | . . . . . Robots Corrupted . | . . . . . Combat Hostiles . | . . . . . Parts Fried 2 | . . . 2 . Impact Corruptions . | . . . . . Robots Melted . | . . . . . Combat Hostiles . | . . . . . Parts Melted 4 | . 1 . 2 1 Heat Transferred 3446 | . 592 518 1258 1078 Parts Sabotaged . | . . . . . Parts Stolen . | . . . . . Parts Stripped . | . . . . . Power Chain Reactions . | . . . . . Alert | -11 -10 -9 -8 -7 ------- Run | Yrd Mat Mat Mat Fac Peak Influence 426 | . 221 303 426 155 Initial 87 | . . 58 36 87 Average 104 | . 116 137 113 75 Maximum Alert Level 2 | . 1 1 2 . Low Security (%) 89 | 100 94 80 83 100 Level 1 9 | . 5 19 14 . Level 2 . | . . . 1 . Level 3 . | . . . . . Level 4 . | . . . . . Level 5 . | . . . . . High Security . | . . . . . Max Security . | . . . . . Squads Dispatched 18 | . 2 4 6 6 Investigation 8 | . 2 1 4 1 Extermination 3 | . . . . 3 Reinforcement 6 | . . 3 2 1 Assault . | . . . . . Garrison 1 | . . . . 1 Intercept . | . . . . . Searches Triggered . | . . . . . Construction Impeded . | . . . . . Haulers Reinforced . | . . . . . Active Scanning Responses . | . . . . . Cargo Convoy Interrupts 1 | . . . . 1 Stealth | -11 -10 -9 -8 -7 --------- Run | Yrd Mat Mat Mat Fac Distress Signals 2 | . 1 . 1 . Communications Jammed . | . . . . . Distress Signals . | . . . . . Times Spotted 110 | . 16 20 45 29 Peak Tracking Total 9 | . 7 3 9 8 Tactical Retreats 6 | . 1 2 3 . Traps | -11 -10 -9 -8 -7 ------- Run | Yrd Mat Mat Mat Fac Traps Triggered 5 | . . 1 3 1 Indirectly . | . . . . . Trap Hack Attempts . | . . . . . Triggered . | . . . . . Disarmed . | . . . . . Reprogrammed . | . . . . . Reused . | . . . . . Traps Extracted . | . . . . . Installed . | . . . . . Triggered 1 | . . . 1 . Machines | -11 -10 -9 -8 -7 ---------- Run | Yrd Mat Mat Mat Fac Machines Disabled . | . . . . . Max in Single Turn . | . . . . . Machines Repaired . | . . . . . Machines Dismantled . | . . . . . Machines Sabotaged . | . . . . . Overloaded Fab Kills . | . . . . . Hacking | -11 -10 -9 -8 -7 --------- Run | Yrd Mat Mat Mat Fac Machines Accessed 14 | . 5 3 3 3 Terminals 9 | . 4 2 1 2 Fabricators 1 | . . . . 1 Repair Stations 2 | . . 1 1 . Recycling Units 1 | . 1 . . . Scanalyzers 1 | . . . 1 . Garrison Access . | . . . . . Total Hacks 39 | . 18 7 9 5 Successful 31 | . 16 7 7 1 Failed 8 | . 2 . 2 4 Catastrophic 1 | . . . . 1 Database Lockouts . | . . . . . Manual . | . . . . . Terminals 25 | . 15 4 2 4 Fabricators 1 | . . . . 1 Repair Stations 8 | . . 3 5 . Recycling Units 3 | . 3 . . . Scanalyzers 2 | . . . 2 . Garrison Access . | . . . . . Terminal Hacks 17 | . 13 4 . . Record 13 | . 10 3 . . Emergency Access Points 1 | . 1 . . . Locate Traps 2 | . 1 1 . . Zone Layout 1 | . 1 . . . Fabricator Hacks 1 | . . . . 1 Network Status 1 | . . . . 1 Repair Station Hacks 8 | . . 3 5 . Scan Component 5 | . . 2 3 . Repair 3 | . . 1 2 . Recycling Unit Hacks 3 | . 3 . . . Recycle Component 1 | . 1 . . . Report Inventory 1 | . 1 . . . Retrieve Components 1 | . 1 . . . Scanalyzer 2 | . . . 2 . Insert Component 1 | . . . 1 . Analyze 1 | . . . 1 . Garrison Access Hacks . | . . . . . Unauthorized Hacks . | . . . . . Terminals . | . . . . . Fabricators . | . . . . . Repair Stations . | . . . . . Recycling Units . | . . . . . Scanalyzers . | . . . . . Garrison Access . | . . . . . Data Cores Recovered . | . . . . . Used . | . . . . . Hacking Detections 11 | . 5 2 2 2 Full Trace Events 5 | . 3 . 1 1 Feedback Events . | . . . . . Feedback Blocked . | . . . . . Robot Schematics Acquired . | . . . . . Robots Built . | . . . . . Authchips . | . . . . . Time . | . . . . . Total Robot Build Rating . | . . . . . Part Schematics Acquired 1 | . . . 1 . Parts Built . | . . . . . Authchips . | . . . . . Time . | . . . . . Total Part Build Rating . | . . . . . Parts Repaired 3 | . . 1 2 . Time 100 | . . 26 74 . Parts Recycled 1 | . 1 . . . Recycled Matter . | . . . . . Retrieved Matter . | . . . . . Retrieved Components 7 | . 7 . . . Parts Scanalyzed 1 | . . . 1 . Part Schematics Acquired 1 | . . . 1 . Parts Damaged . | . . . . . Bothacking | -11 -10 -9 -8 -7 ------------ Run | Yrd Mat Mat Mat Fac Used RIF Installer . | . . . . . Robots Hacked . | . . . . . Non-combat . | . . . . . Combat . | . . . . . Robot Hacks Applied . | . . . . . Relay Couplers Released . | . . . . . Fabnet Peak Effective % . | . . . . . Robots Rewired . | . . . . . Allies Hacked . | . . . . . Hacks Repelled . | . . . . . Allies | -11 -10 -9 -8 -7 -------- Run | Yrd Mat Mat Mat Fac Total Allies . | . . . . . Largest Group . | . . . . . Highest-Rated Group . | . . . . . Highest-Rated Ally . | . . . . . Total Orders . | . . . . . Ally Attacks . | . . . . . Total Damage . | . . . . . Kills . | . . . . . Allies Corrupted . | . . . . . Allies Melted . | . . . . . Intel | -11 -10 -9 -8 -7 ------- Run | Yrd Mat Mat Mat Fac Robot Analysis Total . | . . . . . Derelict Logs Recovered . | . . . . . Drone Launches . | . . . . . Drone Recoveries . | . . . . . Exploration | -11 -10 -9 -8 -7 ------------- Run | Yrd Mat Mat Mat Fac Turns Passed 4655 | 38 487 892 1656 1582 Spaces Moved 2721 | 36 456 638 838 753 Core 18 | 3 . . 7 8 Treads 625 | . . 147 314 164 Legs 1248 | . . 319 402 527 Wheels 661 | 33 456 172 . . Hover 43 | . . . . 43 Flight 126 | . . . 115 11 Fastest Speed 50 | 50 80 80 112 120 Average Speed 135 | 77 80 118 151 169 Slowest Speed 550 | 80 95 190 520 550 Overloaded Moves . | . . . . . Propulsion Burnouts . | . . . . . Robots Hopped . | . . . . . Cave-ins Triggered . | . . . . . Exploration Rate (%) 34 | 4 47 42 62 16 Regions Visited 4 Branch Regions . Pre-discovered Areas . | . . . . . Known Exits Taken . | . . . . . Unknown Exits Taken 4 | 1 1 1 1 . Scrap Searched . | . . . . . Spaces Dug 1 | . 1 . . . Terrain Destroyed 4 | . 2 2 . . Melee . | . . . . . Projectile 4 | . 2 2 . . AOE . | . . . . . Terrain Rammed . | . . . . . Walls Destroyed . | . . . . . Machines Disabled . | . . . . . Actions | -11 -10 -9 -8 -7 --------- Run | Yrd Mat Mat Mat Fac Total 3261 | 42 527 704 1069 919 Wait 131 | . 31 3 84 13 Move 2717 | 35 455 637 837 753 Hop . | . . . . . Pick Up 52 | 1 12 11 15 13 Fast Attach 37 | 6 . . 14 17 Attach 35 | . 2 7 11 15 Detach 13 | . 1 1 . 11 Swap 17 | . 1 5 7 4 Drop 40 | . 1 6 19 14 Fire 219 | . 24 34 82 79 Melee . | . . . . . Ram . | . . . . . Kick . | . . . . . Crush . | . . . . . Escape Stasis . | . . . . . Rewire . | . . . . . Trap . | . . . . . Miscellaneous . | . . . . . Route ------- -11/Scrapyard -10/Materials -9/Materials -8/Materials (discovered 2 exits: *Fac x2) -7/Factory History --------- Turn | Location | Event 21 | -11/Scrapyard | Discovered new exit (range 15) 39 | -11/Scrapyard | Entered Materials 300 | -10/Materials | Discovered new exit (range 11) 303 | -10/Materials | Build established: Mutant 526 | -10/Materials | Entered another Materials area 526 | -9/Materials | Evolved 2 slots: Utility x2 1343 | -9/Materials | Repaired Structural Scanner 1394 | -9/Materials | Discovered new exit (range 15) 1418 | -9/Materials | Entered another Materials area 1418 | -8/Materials | Evolved 2 slots: Power x1, Propulsion x1 2106 | -8/Materials | Discovered new exit (range 7) 2402 | -8/Materials | Build established: Scavenger-Mutant 2421 | -8/Materials | Repaired Broken Structural Scanner 2462 | -8/Materials | Repaired Lgt. Nuclear Core 2890 | -8/Materials | Discovered new exit (range 13) 2949 | -8/Materials | Destroyed 8 combat bots 2955 | -8/Materials | Lost 6 parts (1p3n1u1w) 2970 | -8/Materials | Core integrity fell below 50% 3074 | -8/Materials | Entered Factory 3074 | -7/Factory | Evolved 2 slots: Utility x2 3417 | -7/Factory | Build established: Mutant 4038 | -7/Factory | P-60 Hacker assimilated allied 2W-WNA(g) 4062 | -7/Factory | Garrison activated, responded to threat 4274 | -7/Factory | Lost 6 parts (1p1n4u) 4625 | -7/Factory | Cargo convoy interrupted 4632 | -7/Factory | Core integrity fell below 50% 4649 | -7/Factory | Core integrity fell below 20% 4656 | -7/Factory | Destroyed by X-67 Chaingunner with Heavy Machine Gun Last Messages --------------- Penetrated by Slug. Critical hit (Destroy). Gatling Laser destroyed. K-01 Serf collects debris. U-05 Engineer builds a Wall. U-05 Engineer destroyed. Particle Charger destroyed. System corrupted: Energy discharge (-24). P-60 Hacker resets X-67 Chaingunner, system corruption cleaned. Lightning Gun destroyed. Penetrated by Slug. Mic. Nuclear Core destroyed. Penetrated by Slug. K-01 Serf collects debris. Imp. Hover Unit destroyed. Penetrated by Slug. K-01 Serf collects debris. Penetrated by Slug. K-01 Serf collects debris. [Achievement: 5k Club] Map ----- +----------------------------------------------------+ | ?????????????# #??????????????????????? | | ?????????????# ######?????????????????? | | #####????????# + #?????????????????? | | ####################+######### #?????????????????? | | ## !! ?# #???###+##########????????? | | "" ## !! # #???# #????????? | | "" ## !! #% #???# [ #????????? | | T" ## + #???# #????????? | | "" # # #??## #????????? | | "" ## """"""""" # #??# """ #????????? | | ##??? ?# #??## """"" #????????? | | "" ##???""""""""?# ! #???# """"" #????????? | | "" ##???? ??# #???# #????????? | | "" ##???? ??# #???# ! #????????? | | "" ##????? ???# #???# ! #????????? | | "" ##?????? ???# #???# !! "Y" +????????? | | ############### #???# % """^#????????? | | +################# ###########+###### | | ^ % % ^ | | % ^ | | [% =! "" | | = """ """" """"? | | "F """"?????? | | ###################+#####+#### """ """??????? | | # ""G"" #### #??# "" ??????? | | # "" ""? ##??#! @ #??# """"?????? | | + ##??# a #??# """??????? | | # ##??# #??# "????????? | | # ? !!! ##??# r #??# ????????? | | # ???/ ##??# k #??# ?????????? | | # ????? ##??# =%* #??###+####??????????? | | # ???????????# p #????????????????????? | | # ???????????# ! #????????????????????? | | ##???????????# #????????????????????? | | ##???????????#%hxx ! #????????????????????? | | ##???????????# =%| #????????????????????? | | ##???????????##+###########????????????????????? | | ???????????## #??# #?????????????????????????? | | ?????????????# #???##?????????????????????????? | | ????????????# #??????????????????????????????? | | # ??????????# #??????????????????????????????? | | + ??????????# #??????????????????????????????? | | ? # ??????????# #??????????????????????????????? | | ????????????????# #??????????????????????????????? | | ????????????????#"???????????????????????????????? | | ????????????????%???????????????????????????????? | | #????????????????"???????????????????????????????? | | #???????????????? ???????????????????????????????? | | #???????????????? ???????????????????????????????? | | #???????????????? ???????????????????????????????? | +----------------------------------------------------+ Best States ------------- Heat Dissipation 61 Coolant Potential 65 Energy Generation 25 Energy Capacity 290 Matter Stores 300 Matter Capacity 300 Sight Range 18 Terrain Scan Range 14 Terrain Scan Density 10 Additional Mass Support 6 Armor Coverage 375 Resistance: KI 20 Resistance: TH 20 Resistance: EX 20 Resistance: EM 20 Resistance: I 20 Resistance: S 20 Resistance: P 20 Core Shielding 20 Evasion (%) 55 Recoil Reduction 3 Matter Filtering 30 Particle Charging 15 Offensive Hacking 10 Item Schematics ----------------- EM Pulse Cannon | -8/Materials | Scanalyzed Robot Schematics ------------------ None Fabricated ------------ Nothing Alien Tech Used ----------------- None Achievements -------------- 5k Club Hey, That's Mine! Universal Adapter Challenges ------------ None Game ------ Seed ConcussiveProcessingBox Manual? 0 Play Time 01:18:41 Cumulative 30.8 hours Start 2024.04.10 @ 02:28:18 End 2024.04.10 @ 03:47:54 Sessions 1 Manual Loads 0 Difficulty Adventurer Special Mode None Game No. 61 Rogue 55 Adventurer 6 Explorer 0 Win Type - Total 0 Types 0/0/0/0/0/0/0/0/0 Lore% 6 Gallery% 21 Achievement% 9 Wizard Run 0 Options --------- Layout 0 ASCII 0 Keyboard 1 Movement Numpad Keybinds 0 Fullscreen 2 Font 18/SmallcapsGlow Map View 76x50 Zoom Use 0% Tactical HUD 0 Map Filters NONE Filters NONE Steam 1 RUN: 02ba7cad-baff-4a36-806c-17380d1afd0b